[Event "Schachfestival Open-A 2018"]
[Site "Lueneburg"]
[Date "2018.07.07"]
[Round "3"]
[White "Mirzoev, Azer"]
[Black "Ngo, Minh Duc"]
[Result "1-0"]
[ECO "D31"]
[WhiteElo "2506"]
[BlackElo "2191"]
[Annotator "ChessBase"]
[PlyCount "65"]
[EventDate "2018.07.06"]
[EventType "swiss"]
[EventCountry "GER"]
[SourceTitle "playchess.com"]
[Source "ChessBase"]
[SourceQuality "1"]
[TimeControl "40/5400+30:1800+30"]

1. d4 {[%emt 0:06:38]} d5 {[%emt 0:00:00]} 2. c4 {[%emt 0:00:08]} e6 {[%emt 0:00:00]} 3. Nc3 {[%emt 0:00:04]} c6 {[%emt 0:00:00]} 4. e3 {[%emt 0:00:17]} f5 {[%emt 0:00:10]} 5. Bd3 {[%emt 0:00:24]} Nf6 {[%emt 0:00:11]} 6. Nge2 {[%emt 0:00:15]} Bd6 {[%emt 0:00:59]} 7. O-O {[%emt 0:01:52]} Ne4 {[%emt 0:05:00]} 8. f3 {[%emt 0:07:25]} Nxc3 {[%emt 0:16:44]} 9. bxc3 {[%emt 0:00:15]} O-O {[%emt 0:00:10]} 10. h3 {[%emt 0:00:44]} Nd7 {[%emt 0:05:40]} 11. cxd5 {[%emt 0:01:41]} exd5 {[%emt 0:01:18]} 12. c4 {[%emt 0:00:50]} Nf6 {[%emt 0:02:01]} 13. cxd5 {[%emt 0:00:16]} cxd5 {[%emt 0:00:18]} 14. Bd2 {[%emt 0:04:06]} Bb8 {[%emt 0:06:15]} 15. Qb3 {[%emt 0:03:01]} Nh5 {[%emt 0:18:19]} 16. e4 {[%emt 0:11:44]} b6 {[%emt 0:16:20]} 17. Bb4 {[%emt 0:14:13]} Rf7 {[%emt 0:04:24]} 18. Qxd5 {[%emt 0:01:12]} Qxd5 {[%emt 0:00:29]} 19. exd5 {[%emt 0:00:06]} a5 {[%emt 0:02:40]} 20. Ba3 {[%emt 0:00:47]} Bd7 {[%emt 0:03:33]} 21. Rab1 {[%emt 0:03:13]} Nf4 {[%emt 0:02:06]} 22. Nxf4 {[%emt 0:02:13]} Bxf4 {[%emt 0:00:03]} 23. Rxb6 {[%emt 0:00:30]} Be3+ {[%emt 0:00:20]} 24. Kh1 {[%emt 0:01:09]} Bxd4 {[%emt 0:00:03]} 25. Rb7 {[%emt 0:00:11]} Rc8 {[%emt 0:01:42]} 26. Rxd7 {[%emt 0:12:56]} Rxd7 {[%emt 0:00:02]} 27. Bxf5 {[%emt 0:00:10]} Rc3 {[%emt 0:03:49]} 28. Be6+ {[%emt 0:00:07]} Rf7 {[%emt 0:00:18]} 29. Bb2 {[%emt 0:03:56]} Rd3 {[%emt 0:00:13]} 30. Bxd4 {[%emt 0:00:04]} Rxd4 {[%emt 0:00:03]} 31. Rc1 {[%emt 0:00:40]} g6 {[%emt 0:00:40]} 32. Rc7 {[%emt 0:00:25]} Rdf4 {[%emt 0:00:16]} 33. d6 {[%emt 0:01:02]} 1-0

[Event "Schachfestival Open-A 2018"]
[Site "Lueneburg"]
[Date "2018.07.07"]
[Round "3"]
[White "Karpatchev, Aleksandr"]
[Black "Herrmann, Andreas"]
[Result "1-0"]
[ECO "B22"]
[WhiteElo "2469"]
[BlackElo "2171"]
[Annotator "ChessBase"]
[PlyCount "79"]
[EventDate "2018.07.06"]
[EventType "swiss"]
[EventCountry "GER"]
[SourceTitle "playchess.com"]
[Source "ChessBase"]
[SourceQuality "1"]
[TimeControl "40/5400+30:1800+30"]

1. e4 {[%emt 0:00:29]} c5 {[%emt 0:00:00]} 2. c3 {[%emt 0:00:16]} d6 {[%emt 0:00:29]} 3. d4 {[%emt 0:00:08]} Nf6 {[%emt 0:00:13]} 4. Bd3 {[%emt 0:00:16]} Nbd7 {[%emt 0:00:24]} 5. Nf3 {[%emt 0:00:18]} e6 {[%emt 0:00:12]} 6. O-O {[%emt 0:00:24]} a6 {[%emt 0:00:31]} 7. e5 {[%emt 0:01:32]} dxe5 {[%emt 0:00:22]} 8. dxe5 {[%emt 0:00:09]} Nd5 {[%emt 0:00:08]} 9. a4 {[%emt 0:03:00]} Qc7 {[%emt 0:00:21]} 10. Qe2 {[%emt 0:01:34]} b6 {[%emt 0:00:38]} 11. Na3 {[%emt 0:03:19]} Be7 {[%emt 0:01:22]} 12. Re1 {[%emt 0:01:11]} O-O {[%emt 0:00:31]} 13. Qe4 {[%emt 0:06:52]} f5 {[%emt 0:00:11]} 14. exf6 {[%emt 0:00:55]} N7xf6 {[%emt 0:00:08]} 15. Qh4 {[%emt 0:01:07]} g6 {[%emt 0:02:47]} 16. Bg5 {[%emt 0:21:25]} Nh5 {[%emt 0:00:10]} 17. Bxe7 {[%emt 0:00:22]} Nxe7 {[%emt 0:00:14]} 18. Ng5 {[%emt 0:10:09]} Rf4 {[%emt 0:01:03]} 19. Qh3 {[%emt 0:00:17]} e5 {[%emt 0:07:31]} 20. Qe3 {[%emt 0:01:12]} c4 {[%emt 0:06:16]} 21. Bxc4+ {[%emt 0:09:59]} Rxc4 {[%emt 0:02:52]} 22. Nxc4 {[%emt 0:00:05]} Qxc4 {[%emt 0:00:07]} 23. Qxe5 {[%emt 0:00:17]} Ra7 {[%emt 0:00:09]} 24. Rad1 {[%emt 0:02:45]} Qc7 {[%emt 0:00:54]} 25. Rd6 {[%emt 0:12:21]} h6 {[%emt 0:06:43]} 26. Ne6 {[%emt 0:01:04]} Bxe6 {[%emt 0:00:10]} 27. Qxe6+ {[%emt 0:00:09]} Kh7 {[%emt 0:07:23]} 28. Rxb6 {[%emt 0:11:47]} Ng7 {[%emt 0:00:20]} 29. Qd6 {[%emt 0:00:12]} Qxd6 {[%emt 0:02:41]} 30. Rxd6 {[%emt 0:00:01]} a5 {[%emt 0:00:10]} 31. Red1 {[%emt 0:01:11]} Nef5 {[%emt 0:01:48]} 32. Rd7 {[%emt 0:00:36]} Ra6 {[%emt 0:00:37]} 33. R1d5 {[%emt 0:04:58]} h5 {[%emt 0:00:32]} 34. Kf1 {[%emt 0:00:09]} Kh6 {[%emt 0:00:19]} 35. Rb5 {[%emt 0:00:34]} Nd6 {[%emt 0:00:55]} 36. Rb8 {[%emt 0:01:12]} g5 {[%emt 0:01:58]} 37. b4 {[%emt 0:01:46]} axb4 {[%emt 0:00:53]} 38. cxb4 {[%emt 0:00:07]} Ngf5 {[%emt 0:00:10]} 39. a5 {[%emt 0:00:19]} Rc6 {[%emt 0:00:05]} 40. Rb6 1-0

[Event "Schachfestival Open-A 2018"]
[Site "Lueneburg"]
[Date "2018.07.07"]
[Round "3"]
[White "Genov, Petar"]
[Black "Moeller, Dustin"]
[Result "1-0"]
[ECO "A13"]
[WhiteElo "2435"]
[BlackElo "2140"]
[Annotator "NA"]
[PlyCount "57"]
[EventDate "2018.07.06"]
[EventType "swiss"]
[EventCountry "GER"]
[SourceTitle "playchess.com"]
[Source "ChessBase"]
[SourceQuality "1"]
[TimeControl "40/5400+30:1800+30"]

1. c4 {[%emt 0:03:46]} e6 {[%emt 0:00:03]} 2. Nf3 {[%emt 0:02:11]} Nf6 {[%emt 0:00:20]} 3. b3 {[%emt 0:01:29]} d5 {[%emt 0:00:08]} 4. Bb2 {[%emt 0:00:17]} Be7 {[%emt 0:00:18]} 5. e3 {[%emt 0:05:04]} O-O {[%emt 0:00:43]} 6. Be2 {[%emt 0:02:33]} c5 {[%emt 0:01:48]} 7. O-O {[%emt 0:01:27]} Nc6 {[%emt 0:00:45]} 8. cxd5 {[%emt 0:02:38]} exd5 {[%emt 0:00:40]} 9. d4 {[%emt 0:03:49]} b6 {[%emt 0:00:06]} 10. Ne5 {[%emt 0:17:40]} Nxe5 {[%emt 0:03:50]} 11. dxe5 {[%emt 0:00:13]} Ne8 {[%emt 0:00:04]} 12. f4 {[%emt 0:18:34]} f6 {[%emt 0:04:23]} 13. Nd2 {[%emt 0:00:48]} fxe5 {[%emt 0:01:47]} 14. Bxe5 {[%emt 0:00:08]} Bf6 {[%emt 0:00:29]} 15. Nf3 {[%emt 0:00:31]} Bb7 {[%emt 0:04:34]} 16. Qd2 {[%emt 0:01:06]} Bxe5 {[%emt 0:01:28]} 17. Nxe5 {[%emt 0:00:12]} Nf6 {[%emt 0:00:14]} 18. b4 {[%emt 0:14:38]} Qe7 {[%emt 0:08:04]} 19. bxc5 {[%emt 0:00:23]} Ne4 {[%emt 0:01:44]} 20. Qc2 {[%emt 0:03:04]} Qxc5 {[%emt 0:07:10]} 21. Qd3 {[%emt 0:04:37]} Ba6 {[%emt 0:12:34]} 22. Qxa6 {[%emt 0:02:31]} Qxe3+ {[%emt 0:00:06]} 23. Kh1 {[%emt 0:00:08]} Nf2+ {[%emt 0:09:37]} 24. Rxf2 {[%emt 0:00:10]} Qxf2 {[%emt 0:00:02]} 25. Bf3 {[%emt 0:06:04]} Rad8 {[%emt 0:05:22]} 26. Rg1 {[%emt 0:03:09]} Rxf4 {[%emt 0:05:14]} 27. Nd3 {[%emt 0:00:55]} Qd4 {[%emt 0:01:31]} 28. Nxf4 {[%emt 0:00:14]} Qxf4 {[%emt 0:00:04]} 29. Qxa7 {[%emt 0:00:26]} 1-0

[Event "Schachfestival Open-A 2018"]
[Site "Lueneburg"]
[Date "2018.07.07"]
[Round "3"]
[White "Kumsiashvili, Nikoloz"]
[Black "Ploder, Udo"]
[Result "1/2-1/2"]
[ECO "A58"]
[WhiteElo "2411"]
[BlackElo "1874"]
[Annotator "NA"]
[PlyCount "66"]
[EventDate "2018.07.06"]
[EventType "swiss"]
[EventCountry "GER"]
[SourceTitle "playchess.com"]
[Source "ChessBase"]
[SourceQuality "1"]
[TimeControl "40/5400+30:1800+30"]

1. d4 {[%emt 0:00:00]} Nf6 {[%emt 0:00:00]} 2. c4 {[%emt 0:00:00]} c5 {[%emt 0:00:00]} 3. d5 {[%emt 0:00:00]} b5 {[%emt 0:00:03]} 4. cxb5 {[%emt 0:00:00]} a6 {[%emt 0:00:10]} 5. bxa6 $11 {[%emt 0:00:14] LiveBook: 5157 Games} g6 {[%emt 0:00:24]} 6. Nc3 {[%emt 0:00:11]} Bg7 {[%emt 0:00:09]} 7. e4 {[%emt 0:00:22]} O-O {[%emt 0:00:25]} 8. e5 {[%emt 0:05:37]} Ne8 {[%emt 0:00:12]} 9. Nf3 {[%emt 0:00:48]} Qa5 {[%emt 0:03:34]} 10. Be2 {[%emt 0:02:51]} Bxa6 {[%emt 0:01:30]} 11. O-O {[%emt 0:00:27]} d6 {[%emt 0:05:18]} 12. Bxa6 {[%emt 0:03:24]} Nxa6 {[%emt 0:01:43]} 13. Qe2 {[%emt 0:00:43]} Nec7 {[%emt 0:07:50]} 14. Bf4 {[%emt 0:02:14]} Rfe8 {[%emt 0:08:30]} 15. Nd2 {[%emt 0:04:06]} Nb4 {[%emt 0:09:00]} 16. Nc4 {[%emt 0:04:54]} Qa6 {[%emt 0:01:10]} 17. Rfd1 {[%emt 0:00:10]} dxe5 {[%emt 0:03:29]} 18. Bxe5 {[%emt 0:13:23]} Bxe5 {[%emt 0:06:26]} 19. Qxe5 {[%emt 0:00:21]} Qxc4 {[%emt 0:00:42]} 20. Qxc7 {[%emt 0:00:16]} Nxa2 {[%emt 0:03:44]} 21. Nxa2 {[%emt 0:01:23]} Rxa2 {[%emt 0:00:23]} 22. Rac1 {[%emt 0:00:02]} Qb4 {[%emt 0:07:06]} 23. Re1 {[%emt 0:02:53]} Qxb2 {[%emt 0:02:31]} 24. Qxc5 {[%emt 0:00:11]} Raa8 {[%emt 0:04:04]} 25. Rb1 {[%emt 0:01:48]} Qf6 {[%emt 0:05:25]} 26. Qc6 {[%emt 0:02:31]} Kg7 {[%emt 0:09:01]} 27. Qxf6+ {[%emt 0:01:02]} Kxf6 {[%emt 0:00:06]} 28. Rb6+ {[%emt 0:00:05]} Kg7 {[%emt 0:01:52]} 29. h3 {[%emt 0:00:49]} Red8 {[%emt 0:01:22]} 30. Rxe7 {[%emt 0:01:23]} Rxd5 {[%emt 0:00:12]} 31. Rbb7 {[%emt 0:00:53]} Rf5 {[%emt 0:00:34]} 32. Ra7 {[%emt 0:00:57]} Rb8 {[%emt 0:00:42]} 33. Rab7 {[%emt 0:00:05]} Ra8 1/2-1/2

[Event "Schachfestival Open-A 2018"]
[Site "Lueneburg"]
[Date "2018.07.07"]
[Round "3"]
[White "Colpe, Malte"]
[Black "Marzik, Hans"]
[Result "1-0"]
[ECO "A48"]
[WhiteElo "2382"]
[BlackElo "2121"]
[Annotator "NA"]
[PlyCount "72"]
[EventDate "2018.07.06"]
[EventType "swiss"]
[EventCountry "GER"]
[SourceTitle "playchess.com"]
[Source "ChessBase"]
[SourceQuality "1"]
[TimeControl "40/5400+30:1800+30"]

1. d4 {[%emt 0:00:00]} Nf6 {[%emt 0:00:00]} 2. Nf3 {[%emt 0:00:00]} g6 {[%emt 0:00:13]} 3. Bg5 {[%emt 0:00:08]} Bg7 {[%emt 0:03:14]} 4. Nbd2 {[%emt 0:01:07]} O-O {[%emt 0:08:15]} 5. c3 {[%emt 0:00:32]} d6 {[%emt 0:00:10]} 6. e4 {[%emt 0:00:26]} b6 {[%emt 0:01:19]} 7. Bd3 {[%emt 0:03:03]} h6 {[%emt 0:03:48]} 8. Bh4 {[%emt 0:01:29]} Ba6 {[%emt 0:02:35]} 9. Bxa6 {[%emt 0:03:00]} Nxa6 {[%emt 0:00:03]} 10. O-O {[%emt 0:01:00]} c5 {[%emt 0:01:08]} 11. Qe2 {[%emt 0:03:12]} Nc7 {[%emt 0:08:02]} 12. Rfd1 {[%emt 0:06:05]} Re8 {[%emt 0:02:05]} 13. e5 {[%emt 0:05:50]} Nfd5 {[%emt 0:04:47]} 14. dxc5 {[%emt 0:10:07]} dxc5 {[%emt 0:07:57]} 15. Nc4 {[%emt 0:03:12]} Qc8 {[%emt 0:01:17]} 16. Rd2 {[%emt 0:07:06]} Qe6 {[%emt 0:01:25]} 17. Bg3 {[%emt 0:03:04]} Rac8 {[%emt 0:14:59]} 18. a4 {[%emt 0:03:35]} a6 {[%emt 0:02:49]} 19. Na3 {[%emt 0:02:41]} Qc6 {[%emt 0:07:53]} 20. Qe4 {[%emt 0:10:30]} b5 {[%emt 0:03:47]} 21. axb5 {[%emt 0:07:03]} axb5 {[%emt 0:00:03]} 22. Rad1 {[%emt 0:00:40]} Nb4 {[%emt 0:07:35]} 23. Qe2 {[%emt 0:01:40]} Nba6 {[%emt 0:00:30]} 24. Nc2 {[%emt 0:03:31]} Ne6 {[%emt 0:00:43]} 25. h4 {[%emt 0:04:02]} Rcd8 {[%emt 0:01:14]} 26. h5 {[%emt 0:02:07]} g5 {[%emt 0:00:04]} 27. Ne3 {[%emt 0:00:51]} Rxd2 {[%emt 0:03:55]} 28. Rxd2 {[%emt 0:00:14]} Rd8 {[%emt 0:00:10]} 29. Rxd8+ {[%emt 0:03:15]} Nxd8 {[%emt 0:00:02]} 30. Nf5 {[%emt 0:00:59]} Bf8 {[%emt 0:01:32]} 31. Nh2 {[%emt 0:01:05]} Qe6 {[%emt 0:09:26]} 32. Qe4 {[%emt 0:01:57]} c4 {[%emt 0:02:01]} 33. Nd4 {[%emt 0:00:39]} Qb6 {[%emt 0:00:07]} 34. Ng4 {[%emt 0:03:48]} Nc5 {[%emt 0:01:21]} 35. Qd5 {[%emt 0:02:33]} Kh7 {[%emt 0:02:11]} 36. Kh2 {[%emt 0:01:41]} Nde6 1-0

[Event "Schachfestival Open-A 2018"]
[Site "Lueneburg"]
[Date "2018.07.07"]
[Round "3"]
[White "Weishaeutel, Moritz"]
[Black "Hoffmann, Lennard"]
[Result "1-0"]
[ECO "B51"]
[WhiteElo "2236"]
[BlackElo "1981"]
[Annotator "NA"]
[PlyCount "115"]
[EventDate "2018.07.06"]
[EventType "swiss"]
[EventCountry "GER"]
[SourceTitle "playchess.com"]
[Source "ChessBase"]
[SourceQuality "1"]
[TimeControl "40/5400+30:1800+30"]

1. e4 {[%emt 0:00:00]} c5 {[%emt 0:00:00]} 2. Nf3 {[%emt 0:00:13]} d6 {[%emt 0:00:00]} 3. Bb5+ {[%emt 0:01:05]} Nc6 {[%emt 0:00:58]} 4. O-O {[%emt 0:01:12]} Bd7 {[%emt 0:02:11]} 5. Re1 {[%emt 0:02:39]} Nf6 {[%emt 0:09:44]} 6. c3 {[%emt 0:02:53]} a6 {[%emt 0:00:45]} 7. Ba4 {[%emt 0:00:56]} g6 {[%emt 0:10:27]} 8. d4 {[%emt 0:06:54]} cxd4 {[%emt 0:01:37]} 9. cxd4 {[%emt 0:02:11]} Bg7 {[%emt 0:04:11]} 10. e5 {[%emt 0:09:12]} dxe5 {[%emt 0:05:06]} 11. dxe5 {[%emt 0:02:00]} Ng4 {[%emt 0:07:25]} 12. Bf4 {[%emt 0:04:07]} Qb6 {[%emt 0:08:08]} 13. Qe2 {[%emt 0:10:37]} Rd8 {[%emt 0:01:14]} 14. Nc3 {[%emt 0:01:20]} O-O {[%emt 0:06:57]} 15. h3 {[%emt 0:09:36]} Nh6 {[%emt 0:00:14]} 16. Nd5 {[%emt 0:02:32]} Qc5 {[%emt 0:04:21]} 17. Red1 {[%emt 0:03:37]} Nf5 {[%emt 0:06:54]} 18. b4 {[%emt 0:15:08]} Qa7 {[%emt 0:06:38]} 19. g4 {[%emt 0:04:12]} Nfd4 {[%emt 0:04:34]} 20. Nxd4 {[%emt 0:01:11]} Nxd4 {[%emt 0:00:11]} 21. Rxd4 {[%emt 0:00:17]} Bxa4 {[%emt 0:07:51]} 22. Nxe7+ {[%emt 0:00:25]} Kh8 {[%emt 0:00:04]} 23. Rxd8 {[%emt 0:00:04]} Rxd8 {[%emt 0:00:10]} 24. Qc4 {[%emt 0:01:33]} b5 {[%emt 0:04:15]} 25. Qxf7 {[%emt 0:00:35]} Qd4 {[%emt 0:00:14]} 26. Rc1 {[%emt 0:01:00]} Rf8 {[%emt 0:00:14]} 27. Rc8 {[%emt 0:00:10]} Rxc8 {[%emt 0:01:00]} 28. Nxc8 {[%emt 0:00:01]} Qxb4 {[%emt 0:01:41]} 29. Qe8+ {[%emt 0:02:51]} Qf8 {[%emt 0:01:03]} 30. Qxf8+ {[%emt 0:00:05]} Bxf8 {[%emt 0:00:02]} 31. e6 {[%emt 0:00:06]} Bc5 {[%emt 0:01:11]} 32. Bd6 {[%emt 0:02:13]} Bxd6 {[%emt 0:00:47]} 33. Nxd6 {[%emt 0:00:03]} b4 {[%emt 0:00:06]} 34. e7 {[%emt 0:00:28]} a5 {[%emt 0:00:09]} 35. g5 {[%emt 0:00:08]} Bc6 {[%emt 0:00:54]} 36. Nc4 {[%emt 0:07:29]} a4 {[%emt 0:00:38]} 37. f4 {[%emt 0:01:04]} a3 {[%emt 0:01:21]} 38. Kf2 {[%emt 0:01:20]} b3 {[%emt 0:00:48]} 39. Na5 {[%emt 0:00:06]} Kg7 {[%emt 0:01:52]} 40. Nxb3 {[%emt 0:01:33]} Kf7 {[%emt 0:01:04]} 41. Nd4 {[%emt 0:36:19]} Ba4 {[%emt 0:07:01]} 42. Ke3 {[%emt 0:00:00]} Kxe7 {[%emt 0:00:42]} 43. Kd3 {[%emt 0:00:00]} Kd6 {[%emt 0:11:39]} 44. Kc4 {[%emt 0:00:00]} Bd7 {[%emt 0:00:17]} 45. h4 {[%emt 0:00:00]} Bg4 {[%emt 0:00:56]} 46. Nb5+ {[%emt 0:00:00]} Ke6 {[%emt 0:00:08]} 47. Nxa3 {[%emt 0:00:00]} Kf5 {[%emt 0:00:06]} 48. Nb5 {[%emt 0:00:00]} Kxf4 {[%emt 0:00:24]} 49. a4 {[%emt 0:00:00]} Bf3 {[%emt 0:01:02]} 50. a5 {[%emt 0:00:00]} Bb7 {[%emt 0:03:04]} 51. Kc5 {[%emt 0:00:00]} Kg4 {[%emt 0:01:27]} 52. Kb6 {[%emt 0:00:00]} Ba8 {[%emt 0:00:39]} 53. Nc7 {[%emt 0:00:00]} Bf3 {[%emt 0:01:31]} 54. a6 {[%emt 0:00:00]} Kxh4 {[%emt 0:00:07]} 55. Ne6 {[%emt 0:00:00]} Ba8 {[%emt 0:00:30]} 56. Kc7 {[%emt 0:00:00]} Kg4 {[%emt 0:00:15]} 57. a7 {[%emt 0:00:00]} Kf5 {[%emt 0:01:48]} 58. Kb8 {[%emt 0:00:00]} 1-0

[Event "Schachfestival Open-A 2018"]
[Site "Lueneburg"]
[Date "2018.07.07"]
[Round "3"]
[White "Boehm, Juergen"]
[Black "Malakhatko, Vadim"]
[Result "0-1"]
[ECO "E11"]
[WhiteElo "2233"]
[BlackElo "2499"]
[Annotator "ChessBase"]
[PlyCount "66"]
[EventDate "2018.07.06"]
[EventType "swiss"]
[EventCountry "GER"]
[SourceTitle "playchess.com"]
[Source "ChessBase"]
[SourceQuality "1"]
[TimeControl "40/5400+30:1800+30"]

1. d4 {[%emt 0:00:00]} e6 {[%emt 0:00:05]} 2. c4 {[%emt 0:00:00]} Bb4+ {[%emt 0:00:07]} 3. Nd2 {[%emt 0:03:19]} Nf6 {[%emt 0:00:28]} 4. Ngf3 {[%emt 0:00:21]} a5 {[%emt 0:00:19]} 5. e3 {[%emt 0:05:54]} b6 {[%emt 0:02:21]} 6. Bd3 {[%emt 0:00:39]} Bb7 {[%emt 0:00:06]} 7. O-O {[%emt 0:00:39]} d5 {[%emt 0:00:10]} 8. a3 {[%emt 0:08:06]} Be7 {[%emt 0:02:37]} 9. Qc2 {[%emt 0:04:03]} c5 {[%emt 0:07:56]} 10. cxd5 {[%emt 0:13:36]} exd5 {[%emt 0:00:20]} 11. dxc5 {[%emt 0:07:18]} bxc5 {[%emt 0:08:56]} 12. Bb5+ {[%emt 0:08:05]} Nbd7 {[%emt 0:06:14]} 13. e4 {[%emt 0:06:37]} O-O {[%emt 0:11:20]} 14. exd5 {[%emt 0:12:04]} Bxd5 {[%emt 0:00:28]} 15. Nc4 {[%emt 0:07:03]} Bxf3 {[%emt 0:01:21]} 16. gxf3 {[%emt 0:00:05]} Nb6 {[%emt 0:02:23]} 17. Bf4 {[%emt 0:03:01]} Nxc4 {[%emt 0:03:04]} 18. Qxc4 {[%emt 0:01:30]} Nh5 {[%emt 0:03:02]} 19. Rad1 {[%emt 0:02:11]} Qb6 {[%emt 0:00:06]} 20. Be5 {[%emt 0:03:45]} Rad8 {[%emt 0:01:23]} 21. a4 {[%emt 0:00:35]} Bf6 {[%emt 0:01:43]} 22. Bxf6 {[%emt 0:04:52]} Qxf6 {[%emt 0:01:39]} 23. Qg4 {[%emt 0:02:28]} Nf4 {[%emt 0:00:20]} 24. Rfe1 {[%emt 0:01:10]} h5 {[%emt 0:04:15]} 25. Qg3 {[%emt 0:00:16]} h4 {[%emt 0:03:42]} 26. Qg4 {[%emt 0:00:05]} g6 {[%emt 0:01:40]} 27. h3 {[%emt 0:01:30]} Kg7 {[%emt 0:00:23]} 28. Bc4 {[%emt 0:01:40]} Rfe8 {[%emt 0:01:08]} 29. b3 {[%emt 0:00:57]} Rd4 {[%emt 0:02:47]} 30. Rxe8 {[%emt 0:01:10]} Rxd1+ {[%emt 0:00:10]} 31. Kh2 {[%emt 0:01:05]} Qa1 {[%emt 0:03:29]} 32. Qxh4 {[%emt 0:00:33]} Rh1+ {[%emt 0:00:06]} 33. Kg3 {[%emt 0:00:06]} Nh5+ {[%emt 0:00:08]} 0-1

[Event "Schachfestival Open-A 2018"]
[Site "Lueneburg"]
[Date "2018.07.07"]
[Round "3"]
[White "Bente, Bjoern"]
[Black "Vorobiov, Evgeny E"]
[Result "0-1"]
[ECO "B57"]
[WhiteElo "2219"]
[BlackElo "2564"]
[Annotator "RC"]
[PlyCount "101"]
[EventDate "2018.07.06"]
[EventType "swiss"]
[EventCountry "GER"]
[SourceTitle "playchess.com"]
[Source "ChessBase"]
[SourceQuality "1"]
[TimeControl "40/5400+30:1800+30"]

1. e4 {[%emt 0:00:00]} c5 {[%emt 0:00:00]} 2. Nf3 {[%emt 0:00:00]} d6 {[%emt 0:01:04]} 3. d4 {[%emt 0:00:00]} cxd4 {[%emt 0:00:03]} 4. Nxd4 {[%emt 0:00:00]} Nf6 {[%emt 0:00:05]} 5. Nc3 {[%emt 0:00:00]} Nc6 {[%emt 0:00:58]} 6. Bc4 {[%emt 0:06:03]} Qb6 {[%emt 0:02:23]} 7. Nb3 {[%emt 0:12:55]} e6 {[%emt 0:00:58]} 8. Bf4 {[%emt 0:10:47]} Ne5 {[%emt 0:02:11]} 9. Bb5+ {[%emt 0:03:50]} Bd7 {[%emt 0:02:45]} 10. Qd4 {[%emt 0:05:05]} Qxd4 {[%emt 0:08:57]} 11. Nxd4 {[%emt 0:00:33]} Rc8 {[%emt 0:01:05]} 12. O-O-O {[%emt 0:03:50]} a6 {[%emt 0:00:57]} 13. Bxd7+ {[%emt 0:00:26]} Nfxd7 {[%emt 0:00:12]} 14. f3 {[%emt 0:02:51]} Be7 {[%emt 0:04:06]} 15. Kb1 {[%emt 0:04:37]} g5 {[%emt 0:06:56]} 16. Bc1 {[%emt 0:05:07]} h5 {[%emt 0:01:57]} 17. Nce2 {[%emt 0:01:32]} h4 {[%emt 0:02:37]} 18. h3 {[%emt 0:00:07]} Rg8 {[%emt 0:04:49]} 19. Bd2 {[%emt 0:06:46]} Nf6 {[%emt 0:08:14]} 20. Bc3 {[%emt 0:05:48]} Nh5 {[%emt 0:01:38]} 21. Rhg1 {[%emt 0:03:53]} Ng6 {[%emt 0:04:46]} 22. Nb3 {[%emt 0:00:50]} Nhf4 {[%emt 0:01:54]} 23. Nxf4 {[%emt 0:02:36]} Nxf4 {[%emt 0:00:09]} 24. Bb4 {[%emt 0:01:21]} d5 {[%emt 0:01:26]} 25. Bxe7 {[%emt 0:00:06]} Kxe7 {[%emt 0:00:07]} 26. exd5 {[%emt 0:00:17]} Nxd5 {[%emt 0:00:37]} 27. Nd4 {[%emt 0:09:23]} Nf4 {[%emt 0:03:40]} 28. Rde1 {[%emt 0:03:59]} Rgd8 {[%emt 0:06:11]} 29. c3 {[%emt 0:00:10]} Kf6 {[%emt 0:00:33]} 30. Ne2 {[%emt 0:01:03]} Rd2 {[%emt 0:09:49]} 31. Nxf4 {[%emt 0:02:34]} gxf4 {[%emt 0:00:07]} 32. Rd1 {[%emt 0:03:53]} Rcd8 {[%emt 0:03:10]} 33. Kc1 {[%emt 0:00:05]} Rxd1+ {[%emt 0:04:15]} 34. Rxd1 {[%emt 0:00:05]} Rg8 {[%emt 0:00:28]} 35. Rd2 {[%emt 0:00:05]} e5 {[%emt 0:00:19]} 36. Kd1 {[%emt 0:00:09]} Ke6 {[%emt 0:00:19]} 37. c4 {[%emt 0:02:21]} Rc8 {[%emt 0:05:03]} 38. b3 {[%emt 0:00:21]} Rc6 {[%emt 0:00:48]} 39. Ke2 {[%emt 0:01:28]} Rd6 {[%emt 0:01:13]} 40. Rxd6+ {[%emt 0:02:25]} Kxd6 {[%emt 0:00:05]} 41. b4 {[%emt 0:30:10]} f5 {[%emt 0:36:09]} 42. Kd3 {[%emt 0:00:09]} Ke6 {[%emt 0:01:09]} 43. a3 {[%emt 0:00:00]} Kd6 {[%emt 0:00:00]} 44. Kc3 {[%emt 0:00:00]} e4 {[%emt 0:00:00]} 45. Kd4 {[%emt 0:00:00]} e3 {[%emt 0:00:00]} 46. Kc3 {[%emt 0:00:00]} Ke5 {[%emt 0:00:00]} 47. Kd3 {[%emt 0:00:00]} a5 {[%emt 0:00:00]} 48. bxa5 {[%emt 0:00:00]} Kd6 {[%emt 0:00:00]} 49. Kc3 {[%emt 0:00:00]} Kc7 {[%emt 0:00:00]} 50. Kd3 {[%emt 0:00:00]} Kb8 {[%emt 0:00:00]} 51. Kd4 0-1

[Event "Schachfestival Open-A 2018"]
[Site "Lueneburg"]
[Date "2018.07.07"]
[Round "3"]
[White "Ramme, Christoph"]
[Black "Nyenhuis, Yannek"]
[Result "1-0"]
[ECO "E06"]
[WhiteElo "2158"]
[BlackElo "1825"]
[Annotator "NA"]
[PlyCount "69"]
[EventDate "2018.07.06"]
[EventType "swiss"]
[EventCountry "GER"]
[SourceTitle "playchess.com"]
[Source "ChessBase"]
[SourceQuality "1"]
[TimeControl "40/5400+30:1800+30"]

1. d4 {[%emt 0:00:00]} d5 {[%emt 0:00:00]} 2. Nf3 {[%emt 0:00:00]} Nf6 {[%emt 0:00:38]} 3. c4 {[%emt 0:00:13]} e6 {[%emt 0:00:42]} 4. g3 {[%emt 0:01:05]} Be7 {[%emt 0:00:36]} 5. Bg2 {[%emt 0:00:12]} O-O {[%emt 0:00:45]} 6. O-O {[%emt 0:00:23]} dxc4 {[%emt 0:01:40]} 7. Qc2 {[%emt 0:02:13]} a6 {[%emt 0:00:29]} 8. a4 {[%emt 0:01:03]} Bd7 {[%emt 0:01:16]} 9. Qxc4 {[%emt 0:01:08]} Bc6 {[%emt 0:00:49]} 10. Bf4 {[%emt 0:01:46]} Nbd7 {[%emt 0:02:10]} 11. Nc3 {[%emt 0:02:56]} Rc8 {[%emt 0:05:42]} 12. Qb3 {[%emt 0:07:18]} Nd5 {[%emt 0:09:40]} 13. Bd2 {[%emt 0:12:00]} Nxc3 {[%emt 0:02:28]} 14. bxc3 {[%emt 0:03:11]} Be4 {[%emt 0:02:48]} 15. Bf4 {[%emt 0:05:50]} c5 {[%emt 0:03:54]} 16. Nd2 {[%emt 0:03:09]} Bxg2 {[%emt 0:06:57]} 17. Kxg2 {[%emt 0:00:05]} cxd4 {[%emt 0:00:35]} 18. cxd4 {[%emt 0:00:29]} Bg5 {[%emt 0:13:14]} 19. Qxb7 {[%emt 0:09:04]} Bxf4 {[%emt 0:00:11]} 20. gxf4 {[%emt 0:00:11]} Nf6 {[%emt 0:04:18]} 21. Nf3 {[%emt 0:05:27]} Nd5 {[%emt 0:05:03]} 22. e3 {[%emt 0:01:55]} Qf6 {[%emt 0:02:12]} 23. Qb1 {[%emt 0:08:15]} Rc3 {[%emt 0:04:17]} 24. Qe4 {[%emt 0:02:29]} Ne7 {[%emt 0:07:50]} 25. Rfc1 {[%emt 0:02:23]} Rxc1 {[%emt 0:02:39]} 26. Rxc1 {[%emt 0:00:08]} Nf5 {[%emt 0:00:14]} 27. Qb7 {[%emt 0:06:59]} Qg6+ {[%emt 0:01:11]} 28. Kh1 {[%emt 0:04:35]} Qh5 {[%emt 0:01:38]} 29. Ne5 {[%emt 0:05:11]} Nh4 {[%emt 0:02:34]} 30. Qxa6 {[%emt 0:04:08]} Re8 {[%emt 0:03:48]} 31. Qb7 {[%emt 0:03:00]} f6 {[%emt 0:00:39]} 32. Rg1 {[%emt 0:00:50]} g5 {[%emt 0:03:21]} 33. a5 {[%emt 0:02:03]} h6 {[%emt 0:01:49]} 34. Ng4 {[%emt 0:00:49]} Rf8 {[%emt 0:02:50]} 35. a6 {[%emt 0:01:21]} 1-0